Cogmind - Beta 15 @@@ ROGUE MODE // 2025.06.04 @ 02:22:31 Player: CL-1C0 Result: Core destroyed Performance ------------- Evolutions (3) 1500 Regions Visited (5) 1000 Robots Destroyed (0) 0 Value Destroyed (0) 0 Prototype IDs (1) 20 Alien Tech Used (0) 0 Bonus (834) 834 TOTAL SCORE: 3354 Bonus ------- Pacifist 834 Cogmind --------- Core Integrity 0/700 Matter 270/300 Energy 100/100 System Corruption 38% Temperature Cool (0) Movement Core (50) Location -7/Lower Caves Parts ------- > --- POWER (1) -------- (None) > --- PROPULSION (2) --- (None) > --- UTILITY (8) ------ (None) > --- WEAPON (2) ------- (None) > --- INVENTORY (5) ---- Plasma Cannon Plasma Cannon Rocket Array Rocket Array Peak State ------------ > --- POWER ------------ (None) > --- PROPULSION ------- Cooled Airjet Xenon Bombardment Thruster > --- UTILITY ---------- Improved Signal Interpreter Hacking Suite > --- WEAPON ----------- Katana > --- INVENTORY -------- Plasma Cannon Plasma Cannon Rocket Array Rocket Array [Rating: 19] Favorites ----------- Power None Propulsion Light Treads Treads Light Treads Hover Unit Cooled Airjet Flight Unit Xenon Bombardment Thruster Utility Improved Signal Interpreter Processor Improved Signal Interpreter Hackware Hacking Suite Weapon Katana Slashing Weapon Katana Build | -11 -10 -9 -8 -7 -7 ------- Run | Yrd Mat Mat Mat Fac Low Slots Evolved 6 | . . 2 2 2 . Power . | . . . . . . Propulsion . | . . . . . . Utility 6 | . . 2 2 2 . Weapon . | . . . . . . Parts Attached 7 | 2 . . . 5 . Power . | . . . . . . Engine . | . . . . . . Core . | . . . . . . Reactor . | . . . . . . Propulsion 4 | 2 . . . 2 . Treads 2 | 2 . . . . . Leg . | . . . . . . Wheel . | . . . . . . Hover 1 | . . . . 1 . Flight 1 | . . . . 1 . Utility 2 | . . . . 2 . Device . | . . . . . . Storage . | . . . . . . Processor 1 | . . . . 1 . Hackware 1 | . . . . 1 . Protection . | . . . . . . Artifact . | . . . . . . Weapon 1 | . . . . 1 . Energy Gun . | . . . . . . Energy Cannon . | . . . . . . Ballistic Gun . | . . . . . . Ballistic Cannon . | . . . . . . Launcher . | . . . . . . Special Weapon . | . . . . . . Impact Weapon . | . . . . . . Slashing Weapon 1 | . . . . 1 . Piercing Weapon . | . . . . . . Special Melee Weapon . | . . . . . . Unidentified Prototypes 1 | . . . . 1 . Parts Lost 6 | . . . 1 . 5 Power . | . . . . . . Propulsion 3 | . . . 1 . 2 Utility 2 | . . . . . 2 Weapon 1 | . . . . . 1 Highest Loss Streak 4 | . . . 1 . 4 To Critical Strikes . | . . . . . . Average Backups 2 | 4 . . . 2 4 Power . | 1 . . . . . Propulsion . | 3 . . . . . Utility . | . . . . . . Weapon 2 | . . . . 2 4 Tool/Special . | . . . . . . Unused Backups 4 | . . . . . 4 Power . | . . . . . . Propulsion . | . . . . . . Utility . | . . . . . . Weapon 4 | . . . . . 4 Tool/Special . | . . . . . . Average Slot Usage (%) 26 | . 28 22 18 24 31 Treads 8 | . 28 22 18 5 . Hover 2 | . . . . . 6 Flight 2 | . . . . 1 6 Processor 4 | . . . . 5 6 Hackware 3 | . . . . 7 4 Slashing Weapon 2 | . . . . 1 6 Peak Build Rating 19 | 2 2 2 2 19 19 Average Rating 9 | 1 2 2 1 9 16 On Entrance 5 | 6 2 2 2 1 19 Naked Turns 13 | . . . . . 13 Heaviest Build 2 | . . . . 2 2 Greatest Support 6 | 3 3 3 3 6 6 Greatest Overweight (x) . | . . . . . . Average Overweight (x) . | . . . . . . Largest Inventory Capacity 5 | 5 5 5 5 5 5 Average Capacity 5 | 5 5 5 5 5 5 Most Carried 5 | 4 . . 1 5 4 Average Carried 2 | 2 . . . 2 4 Final Capacity 5 | 5 5 5 5 5 5 Final Carried 4 | . . . 1 4 4 Class Distribution -------------------- 100% | Mutant Dominant Class ---------------- Mutant | -10/Materials Mutant | -9/Materials Mutant | -8/Materials Mutant | -7/Factory Mutant | -7/Lower Caves Resources | -11 -10 -9 -8 -7 -7 ----------- Run | Yrd Mat Mat Mat Fac Low Matter Collected 220 | 200 . . 20 . . Remotely . | . . . . . . Salvage Created . | . . . . . . Parts . | . . . . . . Haulers Intercepted . | . . . . . . Recyclers Shooed . | . . . . . . Parts Field Recycled . | . . . . . . Retrieved Matter . | . . . . . . Parts Self-Destructed . | . . . . . . Prevented . | . . . . . . Kills | -11 -10 -9 -8 -7 -7 ------- Run | Yrd Mat Mat Mat Fac Low Combat Hostiles Destroyed . | . . . . . . Classes Destroyed . | . . . . . . Best Kill Streak . | . . . . . . Combat Bots Only . | . . . . . . Max Kills in Single Turn . | . . . . . . Gunslinging . | . . . . . . Exploded . | . . . . . . Melee . | . . . . . . Uniques/NPCs Destroyed . | . . . . . . Combat | -11 -10 -9 -8 -7 -7 -------- Run | Yrd Mat Mat Mat Fac Low Hostile Shots Fired 75 | . . 21 15 33 6 Missed 45 | . . 10 5 25 5 Hits 30 | . . 11 10 8 1 Projectile 30 | . . 11 10 8 1 Critical Strikes 1 | . . . 1 . . Damage Taken 1278 | . . 143 151 71 913 Core 788 | . . 25 36 38 689 Absorbed by Shields . | . . . . . . Core Remaining (%) 96 | 100 100 93 93 . . Volleys Fired . | . . . . . . Largest . | . . . . . . Hottest . | . . . . . . Shots Fired . | . . . . . . Gun . | . . . . . . Cannon . | . . . . . . Launcher . | . . . . . . Special . | . . . . . . Kinetic . | . . . . . . Thermal . | . . . . . . Explosive . | . . . . . . Electromagnetic . | . . . . . . Robot Hit Streak . | . . . . . . Robot Miss Streak . | . . . . . . Penetration Max . | . . . . . . Secondary Targets . | . . . . . . Shots Hit Robots . | . . . . . . Core Hits . | . . . . . . Critical Kills . | . . . . . . Critical Parts Destroyed . | . . . . . . Critical Strikes . | . . . . . . Melee Attacks 27 | . . . . 3 24 Impact . | . . . . . . Slashing 27 | . . . . 3 24 Piercing . | . . . . . . Sneak Attacks . | . . . . . . Combat Hostiles . | . . . . . . Follow-up Attacks . | . . . . . . Damage Inflicted 199 | . . . . . 199 Guns . | . . . . . . Cannons . | . . . . . . Explosions . | . . . . . . Melee . | . . . . . . Ramming 199 | . . . . . 199 Kinetic . | . . . . . . Thermal . | . . . . . . Explosive . | . . . . . . Electromagnetic . | . . . . . . Impact . | . . . . . . Slashing . | . . . . . . Piercing . | . . . . . . Highest Corruption 38 | . . 1 . . 38 Average Corruption 5 | . . 1 . . 8 Corruption Purged . | . . . . . . Corruption Blocked . | . . . . . . Effects 3 | . . . . . 3 Message Errors 2 | . . . . . 2 Matter Fused 1 | . . . . . 1 Overload Shots . | . . . . . . Overflow Damage . | . . . . . . Projectiles . | . . . . . . Explosions . | . . . . . . Melee . | . . . . . . Knockbacks . | . . . . . . Impact . | . . . . . . Kinetic . | . . . . . . Secondary . | . . . . . . Self-Inflicted Damage 199 | . . . . . 199 Shots . | . . . . . . Rammed . | . . . . . . Targets Rammed . | . . . . . . Kicked . | . . . . . . Crushed . | . . . . . . Highest Temperature . | . . . . . . Average Temperature . | . . . . . . Received Heat Transfer 177 | . . 69 90 18 . Siege Activations . | . . . . . . Martial Activations . | . . . . . . Shielding Activations . | . . . . . . Robots Disrupted . | . . . . . . Combat Hostiles . | . . . . . . Robots Corrupted . | . . . . . . Combat Hostiles . | . . . . . . Parts Fried . | . . . . . . Impact Corruptions . | . . . . . . Robots Melted . | . . . . . . Combat Hostiles . | . . . . . . Parts Melted . | . . . . . . Heat Transferred . | . . . . . . Parts Sabotaged . | . . . . . . Parts Stolen . | . . . . . . Parts Stripped . | . . . . . . Power Chain Reactions . | . . . . . . Alert | -11 -10 -9 -8 -7 -7 ------- Run | Yrd Mat Mat Mat Fac Low Maximum Alert Level . | . . . . . . Low Security (%) 100 | 100 100 100 100 100 . Level 1 . | . . . . . . Level 2 . | . . . . . . Level 3 . | . . . . . . Level 4 . | . . . . . . Level 5 . | . . . . . . High Security . | . . . . . . Max Security . | . . . . . . Peak Influence 60 | . . . 45 60 . Initial 11 | . . . . 11 . Average 8 | . . . 6 13 . Influence Increases 183 | . . . 60 63 60 Successful Hack 15 | . . . 15 . . Destroy Structure 3 | . . . . 3 . Partial Spotted 30 | . . . 30 . . Lose Combat Pursuer 135 | . . . 15 60 60 Influence Decreases 183 | . . . 35 55 93 Entered New Map 27 | . . . . 14 13 Time Decay 136 | . . . 25 41 70 Lost Part 20 | . . . 10 . 10 Squads Dispatched 3 | . . 1 1 1 . Investigation 3 | . . 1 1 1 . Extermination . | . . . . . . Reinforcement . | . . . . . . Assault . | . . . . . . Garrison . | . . . . . . Intercept . | . . . . . . Searches Triggered . | . . . . . . Construction Impeded . | . . . . . . Haulers Reinforced . | . . . . . . Active Scanning Responses . | . . . . . . Cargo Convoy Interrupts . | . . . . . . Stealth | -11 -10 -9 -8 -7 -7 --------- Run | Yrd Mat Mat Mat Fac Low Distress Signals 2 | . . 2 . . . Communications Jammed . | . . . . . . Distress Signals . | . . . . . . Times Spotted 31 | . . 12 8 7 4 Peak Tracking Total 14 | . . 14 8 5 4 Tactical Retreats 5 | . . . 1 1 3 Traps | -11 -10 -9 -8 -7 -7 ------- Run | Yrd Mat Mat Mat Fac Low Traps Triggered . | . . . . . . Indirectly . | . . . . . . Trap Hack Attempts . | . . . . . . Triggered . | . . . . . . Disarmed . | . . . . . . Reprogrammed . | . . . . . . Reused . | . . . . . . Traps Extracted . | . . . . . . Installed . | . . . . . . Triggered . | . . . . . . Machines | -11 -10 -9 -8 -7 -7 ---------- Run | Yrd Mat Mat Mat Fac Low Machines Disabled . | . . . . . . Max in Single Turn . | . . . . . . Machines Repaired . | . . . . . . Machines Dismantled . | . . . . . . Machines Sabotaged . | . . . . . . Overloaded Fab Kills . | . . . . . . Hacking | -11 -10 -9 -8 -7 -7 --------- Run | Yrd Mat Mat Mat Fac Low Machines Accessed 7 | . . 3 2 2 . Terminals 7 | . . 3 2 2 . Fabricators . | . . . . . . Repair Stations . | . . . . . . Recycling Units . | . . . . . . Scanalyzers . | . . . . . . Garrison Access . | . . . . . . Total Hacks 19 | . . 8 4 7 . Successful 3 | . . . 2 1 . Failed 16 | . . 8 2 6 . Catastrophic 9 | . . 5 2 2 . Database Lockouts . | . . . . . . Manual 19 | . . 8 4 7 . Terminals 19 | . . 8 4 7 . Fabricators . | . . . . . . Repair Stations . | . . . . . . Recycling Units . | . . . . . . Scanalyzers . | . . . . . . Garrison Access . | . . . . . . Terminal Hacks 3 | . . . 2 1 . Level Access Points 1 | . . . 1 . . Zone Layout 2 | . . . 1 1 . Fabricator Hacks . | . . . . . . Repair Station Hacks . | . . . . . . Recycling Unit Hacks . | . . . . . . Scanalyzer . | . . . . . . Garrison Access Hacks . | . . . . . . Unauthorized Hacks . | . . . . . . Terminals . | . . . . . . Fabricators . | . . . . . . Repair Stations . | . . . . . . Recycling Units . | . . . . . . Scanalyzers . | . . . . . . Garrison Access . | . . . . . . Data Cores Recovered . | . . . . . . Used . | . . . . . . Hacking Detections 5 | . . 3 1 1 . Full Trace Events 5 | . . 3 1 1 . Feedback Events 1 | . . 1 . . . Corruption 1 | . . 1 . . . Feedback Blocked . | . . . . . . Robot Schematics Acquired . | . . . . . . Robots Built . | . . . . . . Authchips . | . . . . . . Time . | . . . . . . Total Robot Build Rating . | . . . . . . Part Schematics Acquired . | . . . . . . Parts Built . | . . . . . . Authchips . | . . . . . . Time . | . . . . . . Total Part Build Rating . | . . . . . . Parts Repaired . | . . . . . . Time . | . . . . . . Parts Recycled . | . . . . . . Recycled Matter . | . . . . . . Retrieved Matter . | . . . . . . Retrieved Components . | . . . . . . Parts Scanalyzed . | . . . . . . Part Schematics Acquired . | . . . . . . Parts Damaged . | . . . . . . Bothacking | -11 -10 -9 -8 -7 -7 ------------ Run | Yrd Mat Mat Mat Fac Low Used RIF Installer . | . . . . . . Robots Hacked . | . . . . . . Non-combat . | . . . . . . Combat . | . . . . . . Robot Hacks Applied . | . . . . . . Relay Couplers Released . | . . . . . . Fabnet Peak Effective % . | . . . . . . Robots Rewired . | . . . . . . Allies Hacked . | . . . . . . Hacks Repelled . | . . . . . . Allies | -11 -10 -9 -8 -7 -7 -------- Run | Yrd Mat Mat Mat Fac Low Total Allies . | . . . . . . Largest Group . | . . . . . . Highest-Rated Group . | . . . . . . Highest-Rated Ally . | . . . . . . Total Orders . | . . . . . . Ally Attacks . | . . . . . . Total Damage . | . . . . . . Kills . | . . . . . . Allies Corrupted . | . . . . . . Allies Melted . | . . . . . . Intel | -11 -10 -9 -8 -7 -7 ------- Run | Yrd Mat Mat Mat Fac Low Active Infowar (turns) . | . . . . . . Robot Analysis Total . | . . . . . . Derelict Logs Recovered . | . . . . . . Drone Launches . | . . . . . . Drone Recoveries . | . . . . . . Exploration | -11 -10 -9 -8 -7 -7 ------------- Run | Yrd Mat Mat Mat Fac Low Turns Passed 544 | 4 36 55 61 184 204 Spaces Moved 901 | 1 71 109 119 323 278 Core 560 | 1 71 109 119 260 . Treads . | . . . . . . Legs . | . . . . . . Wheels . | . . . . . . Hover . | . . . . . . Flight 341 | . . . . 63 278 Fastest Speed 40 | 50 50 50 50 40 40 Average Speed 46 | 50 50 50 50 48 40 Slowest Speed 60 | 50 50 50 50 60 40 Overloaded Moves . | . . . . . . Propulsion Burnouts . | . . . . . . Robots Hopped 2 | . . . . 1 1 Potential Cave-ins 21 | . . . . . 21 Cave-ins Triggered 4 | . . . . . 4 Exploration Rate (%) 22 | 2 25 21 19 17 50 Regions Visited 5 Branch Regions 1 Pre-discovered Areas . | . . . . . . Known Exits Taken 2 | . . . 1 1 . Unknown Exits Taken 3 | 1 1 1 . . . Scrap Searched . | . . . . . . Spaces Dug 27 | . . . . 3 24 Terrain Destroyed 27 | . . . . 3 24 Melee 27 | . . . . 3 24 Projectile . | . . . . . . AOE . | . . . . . . Terrain Rammed 33 | . . . . . 33 Walls Destroyed . | . . . . . . Machines Disabled . | . . . . . . Actions | -11 -10 -9 -8 -7 -7 --------- Run | Yrd Mat Mat Mat Fac Low Total 977 | 5 70 108 119 342 333 Wait 7 | . . . . 7 . Move 890 | . 70 108 118 320 274 Hop 2 | . . . . 1 1 Pick Up 6 | . . . 1 5 . Fast Attach 3 | . . . . 3 . Attach 4 | 2 . . . 2 . Detach . | . . . . . . Swap . | . . . . . . Drop 4 | 3 . . . 1 . Fire . | . . . . . . Melee 27 | . . . . 3 24 Ram 32 | . . . . . 32 Kick . | . . . . . . Crush . | . . . . . . Escape Stasis 2 | . . . . . 2 Rewire . | . . . . . . Trap . | . . . . . . Miscellaneous . | . . . . . . Route ------- -11/Scrapyard -10/Materials -9/Materials -8/Materials (discovered 3 exits: *Fac x3) -7/Factory -7/Lower Caves History --------- Turn | Location | Event 1 | -11/Scrapyard | Released all parts (6) 5 | -11/Scrapyard | Discovered new exit (range 0) 5 | -11/Scrapyard | Entered Materials 36 | -10/Materials | Discovered new exit (range 9) 41 | -10/Materials | Entered another Materials area 41 | -9/Materials | Evolved 2 slots: Utility x2 91 | -9/Materials | Discovered new exit (range 11) 96 | -9/Materials | Entered another Materials area 96 | -8/Materials | Evolved 2 slots: Utility x2 109 | -8/Materials | Identified exit to Factory 157 | -8/Materials | Entered Factory 157 | -7/Factory | Evolved 2 slots: Utility x2 256 | -7/Factory | Found Prototype Launcher 257 | -7/Factory | Found Prototype Launcher 326 | -7/Factory | Discovered new exit (range 16) 340 | -7/Factory | Identified exit to Lower Caves 341 | -7/Factory | Entered Lower Caves 342 | -7/Lower Caves | Encountered a Warlord checkpoint 345 | -7/Lower Caves | Build established: Mutant 393 | -7/Lower Caves | Spotted B-75 Beast 458 | -7/Lower Caves | Crushed by falling debris 472 | -7/Lower Caves | Crushed by falling debris 511 | -7/Lower Caves | Crushed by falling debris 520 | -7/Lower Caves | System corruption reached 10% 522 | -7/Lower Caves | Crushed by falling debris 522 | -7/Lower Caves | Core integrity fell below 50% 538 | -7/Lower Caves | System corruption reached 30% 539 | -7/Lower Caves | Core integrity fell below 20% 545 | -7/Lower Caves | Core destroyed Last Messages --------------- 00536_ Destabilizing: Core damaged (-35). 00537_ Slammed into Earth. 00537_ Destabilizing: System corrupted (+1). 00537_ Destabilizing: System corrupted (+2). 00538_ Slammed into Earth. 00538_ Destabilizing: Core damaged (-7). 00539_ Slammed into Earth. 00539_ Destabilizing: System corrupted (+2). 00540_ Slammed into Earth. 00540_ Destabilizing: System corrupted (+2). 00540_ Destabilizing: Core damaged (-21). 00541_ Slammed into Earth. 00541_ Destabilizing: System corrupted (+1). 00542_ Slammed into Earth. 00542_ Destabilizing: System corrupted (+1). 00542_ Destabilizing: Core damaged (-21). 00543_ Slammed into Earth. 00544_ Destabilizing: Core damaged (-35). 00545_ Slammed into Earth. 00545_ Destabilizing: Core damaged (-35). Map ----- +----------------------------------------------------+ | ????????## ### ### | | ?????????##### ##?# | | ?????????????## ## ### #?# # | | ??????????????###### #?##### #### | | ???????????????##### ##????## ##??? | | ??????????????## #?????#### ### #???? | | ????????????### #????????###?#### #???? | | ???????????##" ##???????????????###???? | | ??????????## ####### ##??????????????????????? | | ?????????## ##?????#######???????????????????????? | | ????????## ##????????????????????????????????????? | | ????????### ##???????????????????????????????????? | | ????????#### ##??????????????????????????????????? | | ???????????## ##?????????????????????????????????? | | ????????????## ##????????????????????????????????? | | ?????????????## ##???????????????????????????????? | | ??????????????## ##??????????????????????????????? | | ???????????????## ##?????????????????????????????? | | ????????????????#####????????????????????????????? | | ?????????????????## ##???????????????????????????? | | ??????????????????## ##??????????????????????????? | | ???????????????????## ##?????????????????????????? | | ????????????????????## ##????????????????????????? | | ?????????????????????## ##???????????????????????? | | ??????????????????????## ##??????????????????????? | | ???????????????????????##@##?????????????????????? | | ????????????????????????#####????????????????????? | | ?????????????????????????####????????????????????? | | ??????????????????????????## #???????????????????? | | ????????????????????????????##???????????????????? | | ?????????????????????????????????????????????????? | | ?????????????????????????????????????????????????? | | ?????????????????????????????????????????????????? | | ?????????????????????????????????????????????????? | | ?????????????????????????????????????????????????? | | ?????????????????????????????????????????????????? | | ?????????????????????????????????????????????????? | | ?????????????????????????????????????????????????? | | ?????????????????????????????????????????????????? | | ?????????????????????????????????????????????????? | | ?????????????????????????????????????????????????? | | ?????????????????????????????????????????????????? | | ?????????????????????????????????????????????????? | | ?????????????????????????????????????????????????? | | ?????????????????????????????????????????????????? | | ?????????????????????????????????????????????????? | | ?????????????????????????????????????????????????? | | ?????????????????????????????????????????????????? | | ?????????????????????????????????????????????????? | | ?????????????????????????????????????????????????? | +----------------------------------------------------+ Best States ------------- Heat Dissipation 34 Energy Generation 5 Energy Capacity 100 Matter Stores 300 Matter Capacity 300 Sight Range 16 Terrain Scan Density 10 Evasion (%) 62 Offensive Hacking 10 Item Schematics ----------------- None Robot Schematics ------------------ None Fabricated ------------ Nothing Repaired ---------- Nothing Alien Tech Used ----------------- None Achievements -------------- None Challenges ------------ None Game ------ Seed FlightBeamRailgun Manual? 0 Play Time 00:09:05 Cumulative 521.0 hours Start 2025.06.04 @ 02:15:02 End 2025.06.04 @ 02:22:31 Sessions 1 Manual Loads 0 Difficulty Rogue Special Mode None Game No. 574 Rogue 574 Adventurer 0 Explorer 0 Win Type - Total 15 Types 9/0/5/1/0/0/0/0/0/0 Lore% 82 Gallery% 82 Achievement% 82 Wizard Run 0 Options --------- Layout 0 ASCII 0 Keyboard 0 Movement Numpad Keybinds 0 Fullscreen 1 Font 18/SmallcapsGlow Map View 76x50 Zoom Use 0% Tactical HUD 1 Map Filters NONE Filters NONE Steam 1 RUN: 7ce7e3e0-88c3-45db-9df4-39b00db33913